[Event "Titled Tuesday Blitz May 23 Late 2023"]
[White "Mahdavi, Reza"]
[Black "Rosen, Eric"]
[WhiteFideId "12595926"]
[BlackFideId "2032562"]
[WhiteElo "2352"]
[BlackElo "2331"]
[Result "0-1"]
[Round "08"]
[TimeControl "180+2"]
[Date "2023.05.23"]
[WhiteClock "0:00:10"]
[BlackClock "0:00:12"]

1. e4 {[%clk 0:03:00]}  c5 {[%clk 0:02:52]} 2. Nf3 {[%clk 0:03:01]}  Nc6 {[%clk 0:02:42]} 3. Bb5 {[%clk 0:02:59]}  e6 {[%clk 0:02:38]} 4. Bxc6 {[%clk 0:02:55]}  bxc6 {[%clk 0:02:38]} 5. O-O {[%clk 0:02:56]}  Ne7 {[%clk 0:02:37]} 6. e5 {[%clk 0:02:54]}  Ng6 {[%clk 0:02:37]} 7. b3 {[%clk 0:02:52]}  f6 {[%clk 0:02:37]} 8. Bb2 {[%clk 0:02:52]}  Be7 {[%clk 0:02:34]} 9. Qe2 {[%clk 0:02:50]}  O-O {[%clk 0:02:33]} 10. Na3 {[%clk 0:02:50]}  a5 {[%clk 0:02:32]} 11. Nc4 {[%clk 0:02:49]}  a4 {[%clk 0:02:33]} 12. Rfe1 {[%clk 0:02:43]}  Ba6 {[%clk 0:02:30]} 13. d3 {[%clk 0:02:44]}  f5 {[%clk 0:02:22]} 14. Nd6 {[%clk 0:02:30]}  Qb8 {[%clk 0:02:10]} 15. Qe3 {[%clk 0:02:02]}  Bxd6 {[%clk 0:02:01]} 16. exd6 {[%clk 0:02:02]}  Qxd6 {[%clk 0:02:02]} 17. Ba3 {[%clk 0:02:02]}  Qf4 {[%clk 0:01:56]} 18. Bxc5 {[%clk 0:01:59]}  Qxe3 {[%clk 0:01:41]} 19. fxe3 {[%clk 0:01:57]}  Rfd8 {[%clk 0:01:41]} 20. Bd6 {[%clk 0:01:58]}  Nh8 {[%clk 0:01:39]} 21. Ne5 {[%clk 0:01:55]}  Nf7 {[%clk 0:01:36]} 22. Nxf7 {[%clk 0:01:55]}  Kxf7 {[%clk 0:01:37]} 23. e4 {[%clk 0:01:55]}  g6 {[%clk 0:01:34]} 24. bxa4 {[%clk 0:01:49]}  c5 {[%clk 0:01:25]} 25. e5 {[%clk 0:01:39]}  c4 {[%clk 0:01:23]} 26. d4 {[%clk 0:01:38]}  Bb7 {[%clk 0:01:20]} 27. a5 {[%clk 0:01:38]}  Rdc8 {[%clk 0:01:17]} 28. Rab1 {[%clk 0:01:37]}  Bc6 {[%clk 0:01:16]} 29. Bb4 {[%clk 0:01:36]}  Be4 {[%clk 0:01:05]} 30. Bc3 {[%clk 0:01:33]}  Bxc2 {[%clk 0:00:56]} 31. Rb7 {[%clk 0:01:32]}  Ke8 {[%clk 0:00:57]} 32. Rb6 {[%clk 0:01:18]}  Be4 {[%clk 0:00:57]} 33. g4 {[%clk 0:01:17]}  Kf7 {[%clk 0:00:44]} 34. gxf5 {[%clk 0:01:16]}  gxf5 {[%clk 0:00:42]} 35. Kf2 {[%clk 0:01:16]}  Rg8 {[%clk 0:00:43]} 36. Rg1 {[%clk 0:01:14]}  Rxg1 {[%clk 0:00:43]} 37. Kxg1 {[%clk 0:01:15]}  Rg8+ {[%clk 0:00:43]} 38. Kf1 {[%clk 0:01:16]}  Rg2 {[%clk 0:00:40]} 39. Rb2 {[%clk 0:01:11]}  Rxb2 {[%clk 0:00:22]} 40. Bxb2 {[%clk 0:01:12]}  f4 {[%clk 0:00:23]} 41. Bc1 {[%clk 0:01:09]}  f3 {[%clk 0:00:22]} 42. Kf2 {[%clk 0:01:08]}  Kg6 {[%clk 0:00:21]} 43. Ke3 {[%clk 0:01:05]}  Bd5 {[%clk 0:00:20]} 44. Bd2 {[%clk 0:01:04]}  Kf5 {[%clk 0:00:21]} 45. Be1 {[%clk 0:01:04]}  Kg4 {[%clk 0:00:21]} 46. h4 {[%clk 0:00:37]}  Kh3 {[%clk 0:00:16]} 47. h5 {[%clk 0:00:18]}  Kg2 {[%clk 0:00:17]} 48. h6 {[%clk 0:00:11]}  c3 {[%clk 0:00:15]} 49. Bh4 {[%clk 0:00:09]}  c2 {[%clk 0:00:13]} 50. Kd2 {[%clk 0:00:10]}  Be4 {[%clk 0:00:11]} 51. a6 {[%clk 0:00:09]}  f2 {[%clk 0:00:12]} 52. Bxf2 {[%clk 0:00:10]}  Kxf2 {[%clk 0:00:13]} 53. a7 {[%clk 0:00:11]}  Kf3 {[%clk 0:00:12]} 54. a4 {[%clk 0:00:11]}  Kf4 {[%clk 0:00:12]} 55. a5 {[%clk 0:00:11]}  Kg5 {[%clk 0:00:12]} 56. a6 {[%clk 0:00:10]}  Kxh6 {[%clk 0:00:12]} 0-1


[Site "https://www.chess.com"]

[Event "Titled Tuesday Blitz May 23 Late 2023"]
[White "Sethuraman, S.P."]
[Black "Chor, Kevin"]
[WhiteFideId "5021596"]
[BlackFideId "2090740"]
[WhiteElo "2543"]
[BlackElo "2647"]
[Result "1-0"]
[Round "08"]
[TimeControl "180+2"]
[Date "2023.05.23"]
[WhiteClock "0:00:10"]
[BlackClock "0:00:02"]

1. b3 {[%clk 0:03:00]}  g6 {[%clk 0:02:57]} 2. Bb2 {[%clk 0:03:01]}  Nf6 {[%clk 0:02:58]} 3. Nf3 {[%clk 0:03:01]}  Bg7 {[%clk 0:02:58]} 4. g3 {[%clk 0:03:02]}  O-O {[%clk 0:02:57]} 5. Bg2 {[%clk 0:03:02]}  c5 {[%clk 0:02:54]} 6. c4 {[%clk 0:03:02]}  Nc6 {[%clk 0:02:53]} 7. d4 {[%clk 0:02:59]}  d6 {[%clk 0:02:51]} 8. d5 {[%clk 0:02:55]}  Na5 {[%clk 0:02:49]} 9. O-O {[%clk 0:02:51]}  b5 {[%clk 0:02:39]} 10. cxb5 {[%clk 0:02:50]}  a6 {[%clk 0:02:38]} 11. bxa6 {[%clk 0:02:50]}  Bxa6 {[%clk 0:02:39]} 12. Nfd2 {[%clk 0:02:44]}  Qb6 {[%clk 0:02:36]} 13. Nc3 {[%clk 0:02:24]}  Rfb8 {[%clk 0:02:34]} 14. Rb1 {[%clk 0:02:23]}  Qc7 {[%clk 0:02:31]} 15. Ba1 {[%clk 0:02:22]}  Nd7 {[%clk 0:02:22]} 16. Qc2 {[%clk 0:02:19]}  Ne5 {[%clk 0:02:17]} 17. Rfe1 {[%clk 0:02:18]}  Rb4 {[%clk 0:02:09]} 18. a3 {[%clk 0:02:17]}  Rb7 {[%clk 0:02:05]} 19. b4 {[%clk 0:02:17]}  Nac4 {[%clk 0:01:54]} 20. Nxc4 {[%clk 0:02:07]}  Nxc4 {[%clk 0:01:51]} 21. Qc1 {[%clk 0:01:30]}  cxb4 {[%clk 0:01:35]} 22. axb4 {[%clk 0:01:30]}  Rab8 {[%clk 0:01:32]} 23. b5 {[%clk 0:01:28]}  Bxb5 {[%clk 0:01:29]} 24. Nxb5 {[%clk 0:01:28]}  Rxb5 {[%clk 0:01:27]} 25. Rxb5 {[%clk 0:01:28]}  Rxb5 {[%clk 0:01:27]} 26. Bxg7 {[%clk 0:01:29]}  Kxg7 {[%clk 0:01:28]} 27. Qc3+ {[%clk 0:01:29]}  f6 {[%clk 0:01:18]} 28. h4 {[%clk 0:01:26]}  Qa5 {[%clk 0:01:07]} 29. Qxa5 {[%clk 0:01:17]}  Rxa5 {[%clk 0:01:06]} 30. Rc1 {[%clk 0:01:17]}  Rc5 {[%clk 0:01:01]} 31. Rb1 {[%clk 0:01:10]}  f5 {[%clk 0:01:01]} 32. Rb7 {[%clk 0:01:03]}  Kf6 {[%clk 0:01:00]} 33. Rb8 {[%clk 0:01:00]}  h6 {[%clk 0:00:49]} 34. Rh8 {[%clk 0:00:58]}  Kg7 {[%clk 0:00:49]} 35. Re8 {[%clk 0:00:58]}  Kf6 {[%clk 0:00:49]} 36. Rh8 {[%clk 0:00:58]}  Kg7 {[%clk 0:00:46]} 37. Rd8 {[%clk 0:00:57]}  Nb6 {[%clk 0:00:42]} 38. Re8 {[%clk 0:00:50]}  Kf6 {[%clk 0:00:40]} 39. e4 {[%clk 0:00:50]}  fxe4 {[%clk 0:00:35]} 40. Bxe4 {[%clk 0:00:50]}  Nxd5 {[%clk 0:00:36]} 41. Rg8 {[%clk 0:00:50]}  g5 {[%clk 0:00:20]} 42. h5 {[%clk 0:00:40]}  Kf7 {[%clk 0:00:15]} 43. Bxd5+ {[%clk 0:00:34]}  Rxd5 {[%clk 0:00:16]} 44. Rg6 {[%clk 0:00:34]}  g4 {[%clk 0:00:16]} 45. Rxh6 {[%clk 0:00:33]}  Rf5 {[%clk 0:00:15]} 46. Rh7+ {[%clk 0:00:31]}  Ke6 {[%clk 0:00:15]} 47. h6 {[%clk 0:00:31]}  Rh5 {[%clk 0:00:14]} 48. Kf1 {[%clk 0:00:27]}  d5 {[%clk 0:00:14]} 49. Ke2 {[%clk 0:00:28]}  Kf6 {[%clk 0:00:14]} 50. Rh8 {[%clk 0:00:25]}  e5 {[%clk 0:00:12]} 51. h7 {[%clk 0:00:22]}  Kg7 {[%clk 0:00:11]} 52. Rd8 {[%clk 0:00:19]}  d4 {[%clk 0:00:08]} 53. Rd7+ {[%clk 0:00:19]}  Kf6 {[%clk 0:00:06]} 54. Kd3 {[%clk 0:00:16]}  Kf5 {[%clk 0:00:04]} 55. Rf7+ {[%clk 0:00:15]}  Ke6 {[%clk 0:00:04]} 56. Ra7 {[%clk 0:00:15]}  Kd5 {[%clk 0:00:03]} 57. Ra5+ {[%clk 0:00:15]}  Ke6 {[%clk 0:00:04]} 58. Ke4 {[%clk 0:00:16]}  Rxh7 {[%clk 0:00:04]} 59. Rxe5+ {[%clk 0:00:12]}  Kf6 {[%clk 0:00:04]} 60. Rf5+ {[%clk 0:00:10]}  Kg6 {[%clk 0:00:04]} 61. Rf4 {[%clk 0:00:10]}  Rd7 {[%clk 0:00:04]} 62. Rxg4+ {[%clk 0:00:08]}  Kh5 {[%clk 0:00:04]} 63. Rh4+ {[%clk 0:00:09]}  Kg5 {[%clk 0:00:04]} 64. f4+ {[%clk 0:00:08]}  Kg6 {[%clk 0:00:04]} 65. Kd3 {[%clk 0:00:09]}  Kf5 {[%clk 0:00:05]} 66. Rh5+ {[%clk 0:00:09]}  Kg4 {[%clk 0:00:05]} 67. Rg5+ {[%clk 0:00:09]}  Kf3 {[%clk 0:00:06]} 68. f5 {[%clk 0:00:09]}  Kf2 {[%clk 0:00:04]} 69. f6 {[%clk 0:00:09]}  Rf7 {[%clk 0:00:04]} 70. Rg6 {[%clk 0:00:09]}  Kf3 {[%clk 0:00:03]} 71. Kxd4 {[%clk 0:00:09]}  Rd7+ {[%clk 0:00:03]} 72. Ke5 {[%clk 0:00:10]}  Rb7 {[%clk 0:00:03]} 73. Rg7 {[%clk 0:00:09]}  Rb5+ {[%clk 0:00:03]} 74. Ke6 {[%clk 0:00:09]}  Ke4 {[%clk 0:00:04]} 75. f7 {[%clk 0:00:09]}  Rb6+ {[%clk 0:00:05]} 76. Kd7 {[%clk 0:00:09]}  Rb7+ {[%clk 0:00:05]} 77. Kc8 {[%clk 0:00:10]}  Ra7 {[%clk 0:00:02]} 78. Kb8 {[%clk 0:00:10]} 1-0


[Site "https://www.chess.com"]

[Event "Titled Tuesday Blitz May 23 Late 2023"]
[White "Badmatsyrenov, Oleg"]
[Black "Korchmar, Vasiliy"]
[WhiteFideId "24115762"]
[BlackFideId "24131750"]
[WhiteElo "2396"]
[BlackElo "2370"]
[Result "1-0"]
[Round "08"]
[TimeControl "180+2"]
[Date "2023.05.23"]
[WhiteClock "0:00:18"]
[BlackClock "0:00:00"]

1. e4 {[%clk 0:01:56]}  c5 {[%clk 0:02:58]} 2. Nf3 {[%clk 0:01:55]}  d6 {[%clk 0:02:59]} 3. d4 {[%clk 0:01:56]}  cxd4 {[%clk 0:03:00]} 4. Nxd4 {[%clk 0:01:57]}  Nf6 {[%clk 0:03:01]} 5. Nc3 {[%clk 0:01:57]}  Nc6 {[%clk 0:03:01]} 6. Bg5 {[%clk 0:01:57]}  Bd7 {[%clk 0:03:02]} 7. Bxf6 {[%clk 0:01:56]}  gxf6 {[%clk 0:03:02]} 8. Nf5 {[%clk 0:01:57]}  Qa5 {[%clk 0:02:37]} 9. Bb5 {[%clk 0:01:56]}  a6 {[%clk 0:02:31]} 10. Bxc6 {[%clk 0:01:56]}  bxc6 {[%clk 0:02:32]} 11. Qd3 {[%clk 0:01:55]}  Rb8 {[%clk 0:02:14]} 12. O-O {[%clk 0:01:55]}  Bxf5 {[%clk 0:01:30]} 13. exf5 {[%clk 0:01:55]}  Bh6 {[%clk 0:01:30]} 14. g3 {[%clk 0:01:49]}  Rxb2 {[%clk 0:01:23]} 15. Rab1 {[%clk 0:01:38]}  Rxb1 {[%clk 0:01:23]} 16. Rxb1 {[%clk 0:01:39]}  O-O {[%clk 0:01:24]} 17. Re1 {[%clk 0:01:29]}  Re8 {[%clk 0:01:11]} 18. Re2 {[%clk 0:01:10]}  Qb4 {[%clk 0:01:03]} 19. Re4 {[%clk 0:01:09]}  Qc5 {[%clk 0:00:58]} 20. Rc4 {[%clk 0:01:05]}  Qb6 {[%clk 0:00:48]} 21. Rg4+ {[%clk 0:00:50]}  Kh8 {[%clk 0:00:48]} 22. Qc4 {[%clk 0:00:50]}  d5 {[%clk 0:00:45]} 23. Qd3 {[%clk 0:00:48]}  Rg8 {[%clk 0:00:26]} 24. Rh4 {[%clk 0:00:44]}  Bf8 {[%clk 0:00:20]} 25. Ne2 {[%clk 0:00:40]}  Qb5 {[%clk 0:00:17]} 26. Qf3 {[%clk 0:00:40]}  Qb1+ {[%clk 0:00:12]} 27. Kg2 {[%clk 0:00:40]}  Qxc2 {[%clk 0:00:12]} 28. Nf4 {[%clk 0:00:40]}  Rg5 {[%clk 0:00:06]} 29. g4 {[%clk 0:00:24]}  Qxf5 {[%clk 0:00:06]} 30. h3 {[%clk 0:00:21]}  Qe4 {[%clk 0:00:06]} 31. Qxe4 {[%clk 0:00:20]}  dxe4 {[%clk 0:00:07]} 32. Ne2 {[%clk 0:00:17]}  c5 {[%clk 0:00:06]} 33. Nc3 {[%clk 0:00:18]}  f5 {[%clk 0:00:05]} 34. Kf1 {[%clk 0:00:18]}  Bg7 {[%clk 0:00:05]} 35. Na4 {[%clk 0:00:17]}  c4 {[%clk 0:00:03]} 36. gxf5 {[%clk 0:00:17]}  Rxf5 {[%clk 0:00:03]} 37. Rxe4 {[%clk 0:00:18]}  c3 {[%clk 0:00:03]} 38. Rc4 {[%clk 0:00:18]}  Ra5 {[%clk 0:00:02]} 39. Rc8+ {[%clk 0:00:16]}  Bf8 {[%clk 0:00:02]} 40. Nxc3 {[%clk 0:00:17]}  Kg7 {[%clk 0:00:01]} 41. Kg2 {[%clk 0:00:17]}  e6 {[%clk 0:00:01]} 42. Rc7 {[%clk 0:00:16]}  Bd6 {[%clk 0:00:01]} 43. Rc6 {[%clk 0:00:17]}  Be5 {[%clk 0:00:02]} 44. Nd1 {[%clk 0:00:16]}  Rxa2 {[%clk 0:00:02]} 45. Rc4 {[%clk 0:00:15]}  a5 {[%clk 0:00:01]} 46. Ne3 {[%clk 0:00:16]}  Bf6 {[%clk 0:00:02]} 47. Rg4+ {[%clk 0:00:14]}  Kf8 {[%clk 0:00:02]} 48. Rc4 {[%clk 0:00:15]}  a4 {[%clk 0:00:02]} 49. Ng4 {[%clk 0:00:16]}  Be7 {[%clk 0:00:02]} 50. Rc8+ {[%clk 0:00:17]}  Kg7 {[%clk 0:00:02]} 51. Rc7 {[%clk 0:00:17]}  Bf6 {[%clk 0:00:02]} 52. Rc4 {[%clk 0:00:15]}  a3 {[%clk 0:00:02]} 53. Ra4 {[%clk 0:00:16]}  Ra1 {[%clk 0:00:02]} 54. Ne3 {[%clk 0:00:16]}  Bb2 {[%clk 0:00:02]} 55. Nc2 {[%clk 0:00:16]}  Rc1 {[%clk 0:00:02]} 56. Nxa3 {[%clk 0:00:17]}  Ra1 {[%clk 0:00:02]} 57. Rg4+ {[%clk 0:00:18]}  Kf6 {[%clk 0:00:01]} 58. Nc4 {[%clk 0:00:18]}  Ra2 {[%clk 0:00:00]} 59. Nd6 {[%clk 0:00:18]} 1-0


[Site "https://www.chess.com"]

[Event "Titled Tuesday Blitz May 23 Late 2023"]
[White "Javakhadze, Zurab"]
[Black "Arabidze, Meri"]
[WhiteFideId "13603647"]
[BlackFideId "13604040"]
[WhiteElo "2381"]
[BlackElo "2405"]
[Result "0-1"]
[Round "08"]
[TimeControl "180+2"]
[Date "2023.05.23"]
[WhiteClock "0:00:00"]
[BlackClock "0:00:51"]

1. Nf3 {[%clk 0:03:00]}  Nf6 {[%clk 0:02:58]} 2. c4 {[%clk 0:02:58]}  b6 {[%clk 0:02:57]} 3. d4 {[%clk 0:02:52]}  e6 {[%clk 0:02:56]} 4. a3 {[%clk 0:02:52]}  Bb7 {[%clk 0:02:54]} 5. Nc3 {[%clk 0:02:52]}  d5 {[%clk 0:02:54]} 6. cxd5 {[%clk 0:02:50]}  Nxd5 {[%clk 0:02:55]} 7. Qc2 {[%clk 0:02:49]}  Nd7 {[%clk 0:02:50]} 8. e4 {[%clk 0:02:48]}  Nxc3 {[%clk 0:02:50]} 9. bxc3 {[%clk 0:02:49]}  Be7 {[%clk 0:02:48]} 10. Bd3 {[%clk 0:02:48]}  c5 {[%clk 0:02:48]} 11. Bf4 {[%clk 0:02:45]}  O-O {[%clk 0:02:47]} 12. O-O {[%clk 0:02:45]}  Rc8 {[%clk 0:02:47]} 13. Qe2 {[%clk 0:02:45]}  cxd4 {[%clk 0:02:43]} 14. cxd4 {[%clk 0:02:45]}  Nf6 {[%clk 0:02:42]} 15. Rfd1 {[%clk 0:02:27]}  Rc3 {[%clk 0:02:39]} 16. a4 {[%clk 0:02:14]}  Rxd3 {[%clk 0:02:36]} 17. Qxd3 {[%clk 0:02:04]}  Bxe4 {[%clk 0:02:35]} 18. Qe2 {[%clk 0:02:04]}  Qa8 {[%clk 0:02:30]} 19. a5 {[%clk 0:01:56]}  Bxf3 {[%clk 0:02:25]} 20. Qxf3 {[%clk 0:01:56]}  Qxf3 {[%clk 0:02:25]} 21. gxf3 {[%clk 0:01:57]}  Nd5 {[%clk 0:02:24]} 22. Bd2 {[%clk 0:01:57]}  Bf6 {[%clk 0:02:18]} 23. Be3 {[%clk 0:01:49]}  h5 {[%clk 0:02:14]} 24. Rdc1 {[%clk 0:01:42]}  g5 {[%clk 0:02:05]} 25. Kf1 {[%clk 0:01:42]}  Kg7 {[%clk 0:02:03]} 26. Ke2 {[%clk 0:01:41]}  Kg6 {[%clk 0:02:02]} 27. a6 {[%clk 0:01:14]}  Kf5 {[%clk 0:01:54]} 28. Rc4 {[%clk 0:01:13]}  b5 {[%clk 0:01:49]} 29. Rc5 {[%clk 0:01:08]}  b4 {[%clk 0:01:49]} 30. Kd3 {[%clk 0:01:04]}  g4 {[%clk 0:01:33]} 31. Raa5 {[%clk 0:00:56]}  Bd8 {[%clk 0:01:06]} 32. Rxd5+ {[%clk 0:00:35]}  exd5 {[%clk 0:01:06]} 33. Rxd5+ {[%clk 0:00:36]}  Kg6 {[%clk 0:01:04]} 34. Rb5 {[%clk 0:00:00]}  Bb6 {[%clk 0:00:51]} 0-1


[Site "https://www.chess.com"]

[Event "Titled Tuesday Blitz May 23 Late 2023"]
[White "Naroditsky, Daniel"]
[Black "Annaberdiyev, Meylis"]
[WhiteFideId "2026961"]
[BlackFideId "14000563"]
[WhiteElo "2633"]
[BlackElo "2416"]
[Result "1-0"]
[Round "08"]
[TimeControl "180+2"]
[Date "2023.05.23"]
[WhiteClock "0:02:23"]
[BlackClock "0:00:19"]

1. d4 {[%clk 0:03:00]}  Nf6 {[%clk 0:02:58]} 2. Nc3 {[%clk 0:03:01]}  d5 {[%clk 0:02:58]} 3. Bf4 {[%clk 0:03:01]}  e6 {[%clk 0:02:52]} 4. e3 {[%clk 0:03:01]}  Bb4 {[%clk 0:02:48]} 5. Bd3 {[%clk 0:03:01]}  c5 {[%clk 0:02:39]} 6. dxc5 {[%clk 0:03:02]}  Nbd7 {[%clk 0:02:37]} 7. Nf3 {[%clk 0:03:02]}  Nxc5 {[%clk 0:02:32]} 8. O-O {[%clk 0:03:02]}  Bxc3 {[%clk 0:02:31]} 9. bxc3 {[%clk 0:03:02]}  O-O {[%clk 0:02:32]} 10. Ne5 {[%clk 0:03:02]}  h6 {[%clk 0:02:24]} 11. Qf3 {[%clk 0:03:01]}  Nce4 {[%clk 0:02:21]} 12. Qh3 {[%clk 0:02:38]}  Nd7 {[%clk 0:01:39]} 13. f3 {[%clk 0:02:33]}  Nxe5 {[%clk 0:01:12]} 14. Bxe5 {[%clk 0:02:34]}  Nf6 {[%clk 0:01:13]} 15. Qg3 {[%clk 0:02:35]}  Bd7 {[%clk 0:01:07]} 16. Rab1 {[%clk 0:02:32]}  b6 {[%clk 0:01:05]} 17. Rb4 {[%clk 0:02:32]}  Rc8 {[%clk 0:01:00]} 18. Rh4 {[%clk 0:02:30]}  Ne8 {[%clk 0:00:35]} 19. Rxh6 {[%clk 0:02:24]}  f6 {[%clk 0:00:19]} 20. Qg6 {[%clk 0:02:23]} 1-0


[Site "https://www.chess.com"]

[Event "Titled Tuesday Blitz May 23 Late 2023"]
[White "Holt, Conrad"]
[Black "Aldokhin, Ivan"]
[WhiteFideId "2034387"]
[BlackFideId "24115720"]
[WhiteElo "2592"]
[BlackElo "2322"]
[Result "1-0"]
[Round "08"]
[TimeControl "180+2"]
[Date "2023.05.23"]
[WhiteClock "0:01:27"]
[BlackClock "0:00:00"]

1. d4 {[%clk 0:03:00]}  Nf6 {[%clk 0:02:51]} 2. c4 {[%clk 0:03:00]}  g6 {[%clk 0:02:51]} 3. Nc3 {[%clk 0:03:01]}  Bg7 {[%clk 0:02:52]} 4. e4 {[%clk 0:03:01]}  O-O {[%clk 0:02:53]} 5. Nf3 {[%clk 0:03:02]}  d6 {[%clk 0:02:53]} 6. h3 {[%clk 0:03:03]}  Nc6 {[%clk 0:02:54]} 7. d5 {[%clk 0:03:03]}  Nb4 {[%clk 0:02:54]} 8. Be2 {[%clk 0:03:01]}  Re8 {[%clk 0:02:54]} 9. O-O {[%clk 0:03:01]}  e6 {[%clk 0:02:54]} 10. a3 {[%clk 0:03:01]}  Na6 {[%clk 0:02:54]} 11. Qc2 {[%clk 0:03:01]}  exd5 {[%clk 0:02:53]} 12. cxd5 {[%clk 0:03:00]}  Nc5 {[%clk 0:02:53]} 13. Nd2 {[%clk 0:02:56]}  a5 {[%clk 0:02:54]} 14. Re1 {[%clk 0:02:52]}  Bd7 {[%clk 0:02:50]} 15. Bc4 {[%clk 0:02:42]}  Nh5 {[%clk 0:02:17]} 16. Nf3 {[%clk 0:02:35]}  Nf6 {[%clk 0:02:01]} 17. Bf4 {[%clk 0:02:31]}  b5 {[%clk 0:01:52]} 18. Nxb5 {[%clk 0:02:20]}  Nfxe4 {[%clk 0:01:45]} 19. a4 {[%clk 0:01:59]}  Qf6 {[%clk 0:01:38]} 20. Bc1 {[%clk 0:01:56]}  Rac8 {[%clk 0:00:34]} 21. Ra3 {[%clk 0:01:53]}  Bf5 {[%clk 0:00:33]} 22. Rae3 {[%clk 0:01:49]}  Re7 {[%clk 0:00:31]} 23. Nfd4 {[%clk 0:01:42]}  Bd7 {[%clk 0:00:16]} 24. f3 {[%clk 0:01:36]}  Ng5 {[%clk 0:00:03]} 25. Rxe7 {[%clk 0:01:35]}  Bxh3 {[%clk 0:00:04]} 26. Re8+ {[%clk 0:01:33]}  Rxe8 {[%clk 0:00:03]} 27. Rxe8+ {[%clk 0:01:33]}  Bf8 {[%clk 0:00:00]} 28. Qd2 {[%clk 0:01:27]} 1-0


[Site "https://www.chess.com"]

[Event "Titled Tuesday Blitz May 23 Late 2023"]
[White "Sieciechowicz, Marcin"]
[Black "Kleiman, Jake"]
[WhiteFideId "1130170"]
[BlackFideId "2020041"]
[WhiteElo "2302"]
[BlackElo "2623"]
[Result "0-1"]
[Round "08"]
[TimeControl "180+2"]
[Date "2023.05.23"]
[WhiteClock "0:00:00"]
[BlackClock "0:00:08"]

1. d4 {[%clk 0:03:00]}  Nf6 {[%clk 0:02:58]} 2. c4 {[%clk 0:03:01]}  e6 {[%clk 0:02:58]} 3. Nc3 {[%clk 0:03:01]}  Bb4 {[%clk 0:02:58]} 4. Qc2 {[%clk 0:03:01]}  O-O {[%clk 0:02:57]} 5. Nf3 {[%clk 0:03:01]}  d5 {[%clk 0:02:57]} 6. cxd5 {[%clk 0:03:01]}  exd5 {[%clk 0:02:57]} 7. Bf4 {[%clk 0:03:01]}  Ne4 {[%clk 0:02:48]} 8. e3 {[%clk 0:02:59]}  c5 {[%clk 0:02:31]} 9. Bd3 {[%clk 0:02:59]}  Nc6 {[%clk 0:02:30]} 10. O-O {[%clk 0:02:52]}  Bxc3 {[%clk 0:02:15]} 11. bxc3 {[%clk 0:02:52]}  Bf5 {[%clk 0:02:11]} 12. dxc5 {[%clk 0:02:52]}  Bg6 {[%clk 0:02:06]} 13. Nd4 {[%clk 0:02:48]}  Nxc5 {[%clk 0:02:03]} 14. Bxg6 {[%clk 0:02:45]}  hxg6 {[%clk 0:02:04]} 15. Nxc6 {[%clk 0:02:39]}  bxc6 {[%clk 0:02:04]} 16. c4 {[%clk 0:02:39]}  d4 {[%clk 0:01:25]} 17. Rfd1 {[%clk 0:02:39]}  d3 {[%clk 0:01:08]} 18. Qc3 {[%clk 0:02:39]}  Qe7 {[%clk 0:01:00]} 19. Be5 {[%clk 0:00:59]}  Na4 {[%clk 0:00:32]} 20. Qa5 {[%clk 0:00:59]}  Nc5 {[%clk 0:00:19]} 21. Bd4 {[%clk 0:00:52]}  Ne6 {[%clk 0:00:20]} 22. Rxd3 {[%clk 0:00:49]}  Rfd8 {[%clk 0:00:18]} 23. Rad1 {[%clk 0:00:49]}  Rab8 {[%clk 0:00:18]} 24. h3 {[%clk 0:00:48]}  c5 {[%clk 0:00:16]} 25. Be5 {[%clk 0:00:43]}  Rxd3 {[%clk 0:00:16]} 26. Rxd3 {[%clk 0:00:44]}  Rb1+ {[%clk 0:00:15]} 27. Kh2 {[%clk 0:00:44]}  Qg5 {[%clk 0:00:12]} 28. Bg3 {[%clk 0:00:40]}  Qf5 {[%clk 0:00:11]} 29. Qd2 {[%clk 0:00:23]}  Ng5 {[%clk 0:00:08]} 30. Rd8+ {[%clk 0:00:22]}  Kh7 {[%clk 0:00:08]} 31. Rd5 {[%clk 0:00:00]}  Nf3+ {[%clk 0:00:08]} 0-1


[Site "https://www.chess.com"]